bitfinex-derivatives/quotes_ETHF0:USTF0_20250824
["timestamp","ask_amount","ask_price","bid_price","bid_amount"]
[1756055700109,0.4104,4874.4,4874.1,0.28876452]
[1756055700312,1.0431,4874.3,4873.3,0.53127113]
[1756055700510,0.41045,4873.8,4873.4,0.2887924]
[1756055700707,1.0431,4873.7,4872.3,1.06287113]
[1756055700909,1.0431,4873.7,4872.4,0.28903345]
[1756055701112,8.0,4873.6,4872.5,0.28903345]
[1756055701412,0.3467,4874.1,4872.7,0.1879]
[1756055701602,0.3486,4874.6,4873.6,0.1879]
[1756055701810,0.3478,4875.1,4873.9,0.0205]
[1756055702007,26.992,4876.6,4873.9,0.0205]
[1756055702008,0.75808,4875.9,4874.4,0.4104]
[1756055702209,0.3486,4876.1,4875.1,0.41033]
[1756055702417,0.3486,4876.1,4875.2,0.83019704]
[1756055702619,0.3478,4876.7,4875.9,0.41027]
[1756055702910,0.41023,4876.4,4876.0,0.28861087]
[1756055703108,0.3467,4876.4,4875.5,0.1879]
[1756055703307,0.3486,4876.7,4875.6,0.5409623]
[1756055703611,8.0,4876.6,4875.9,0.41027]
[1756055703816,0.41019,4876.9,4876.0,0.8296229]
[1756055704011,8.0,4877.1,4876.1,0.82946469]
[1756055704210,8.0,4877.1,4876.2,0.5409623]
[1756055704211,0.41024,4876.3,4876.2,0.5409623]
[1756055704512,0.3478,4877.0,4876.2,0.5409623]
[1756055704712,8.0,4876.9,4876.3,0.54074321]
[1756055704912,8.0,4876.9,4876.4,0.54074321]
[1756055705115,8.0,4876.9,4875.8,0.1879]
[1756055705116,0.6964,4876.9,4876.5,0.54074321]
[1756055705413,8.0,4876.8,4876.6,0.54074321]
[1756055705610,8.0,4876.8,4876.3,0.53127113]
[1756055705611,0.6953,4877.4,4876.7,0.54074321]
[1756055705818,0.6953,4877.4,4876.8,0.54074321]
[1756055706019,0.3478,4877.2,4876.9,0.54074321]
[1756055706213,0.3478,4877.2,4877.0,0.54074321]
[1756055706409,8.0,4877.1,4876.3,0.3437]
[1756055706717,0.3486,4877.3,4876.4,0.83194603]
[1756055706913,0.3486,4877.3,4876.5,0.83194603]
[1756055707109,8.0,4877.2,4876.6,0.54024784]
[1756055707308,0.41018,4877.0,4876.7,0.54024784]
[1756055707515,0.8475,4876.9,4876.8,0.54024784]
[1756055707720,9.1929,4876.9,4875.9,0.53127113]
[1756055707911,8.0,4876.8,4876.0,0.8320494]
[1756055708105,8.0,4876.8,4876.1,0.54031005]
[1756055708310,0.4289,4876.3,4876.2,0.54059735]
[1756055708512,0.4289,4876.3,4875.5,0.3533]
[1756055708513,1.1929,4876.3,4875.5,0.3533]
[1756055708815,8.0,4876.2,4875.7,0.53127113]
[1756055709015,8.8475,4876.2,4875.8,1.10434665]
[1756055709319,0.41022,4876.6,4875.9,1.6355654]
[1756055709613,8.0,4876.5,4876.2,0.3533]
[1756055709920,8.41019,4876.9,4876.3,0.54064241]
[1756055710211,0.0205,4877.7,4876.2,0.3533]
[1756055710212,0.4186,4877.6,4876.5,0.415]
[1756055710411,0.41015,4877.5,4876.6,0.54064241]
[1756055710611,8.0,4877.5,4876.7,0.54064241]
[1756055710813,8.0,4877.5,4876.8,0.52998906]
[1756055711009,8.0,4877.4,4876.4,0.53127113]
[1756055711211,8.0,4877.5,4876.4,0.53127113]
[1756055711516,0.3454,4876.8,4876.5,0.56444743]
[1756055711721,1.1929,4876.7,4876.2,0.53127113]
[1756055711917,0.8475,4876.6,4876.1,0.53127113]
[1756055712109,0.7743,4876.5,4876.2,0.29245181]
[1756055712311,1.1929,4877.3,4876.3,0.56475654]
[1756055712621,1.1929,4877.3,4876.5,0.53262781]
[1756055712918,8.0,4877.2,4876.4,0.53262781]
[1756055713115,0.41019,4877.0,4876.5,0.29285124]
[1756055713322,1.1929,4876.6,4876.5,0.53262781]
[1756055713520,1.1929,4876.6,4876.5,0.29320328]
[1756055713716,8.0,4876.6,4876.5,0.29320328]
[1756055713916,1.60306,4877.3,4876.5,0.56623162]
[1756055714217,1.02525,4878.0,4877.0,0.53324499]
[1756055714218,0.41017,4877.1,4877.0,0.53324499]
[1756055714409,1.17417,4877.1,4877.0,0.18074499]
[1756055714614,0.4102,4876.9,4875.8,0.41028]
[1756055714814,0.764,4877.9,4876.3,0.415]
[1756055715020,0.764,4877.4,4876.4,0.56744411]
[1756055715221,0.764,4877.4,4876.5,0.56744411]
[1756055715415,0.4186,4877.1,4876.6,0.56744411]
[1756055715622,1.1929,4877.3,4876.7,0.56744411]
[1756055715812,1.1929,4877.1,4876.8,0.56744411]
[1756055716014,0.3454,4877.7,4877.0,0.41018]
[1756055716221,0.3454,4877.7,4877.1,0.56744411]
[1756055716521,0.41013,4877.7,4877.2,0.56744411]
[1756055716725,0.4186,4878.3,4877.4,0.679]
[1756055716918,6.46804841,4878.3,4877.5,0.5745309]
[1756055717119,0.4289,4879.9,4878.9,0.679]
[1756055717321,0.3454,4879.4,4878.9,0.5745309]
[1756055717520,1.25745,4879.8,4878.9,1.2535309]
[1756055717718,0.40998,4879.5,4878.9,1.2535309]
[1756055717925,7.24610219,4879.0,4878.9,0.5745309]
[1756055718121,0.00375378,4879.0,4878.9,0.9002309]
[1756055718621,0.00375378,4879.0,4878.9,1.2633309]
[1756055718818,6.90070219,4879.0,4878.9,0.5745309]
[1756055719013,7.24610219,4879.0,4878.9,0.5745309]
[1756055719213,6.90070219,4879.0,4878.9,0.5745309]
[1756055719421,11.24610219,4879.0,4878.9,0.5745309]
[1756055719614,7.24610219,4879.0,4878.9,0.5745309]
[1756055719818,6.48210219,4879.0,4878.9,0.5745309]
[1756055720016,6.48210219,4879.0,4878.9,0.57876732]
[1756055720528,0.00375378,4879.0,4878.9,2.09258732]
[1756055720822,0.00375378,4879.0,4878.9,1.68256732]
[1756055721025,0.00375378,4879.0,4878.9,0.57876732]
[1756055721223,6.05320219,4879.0,4878.9,0.57876732]
[1756055721427,1.25,4880.0,4879.6,0.0848]
[1756055721616,0.4186,4879.8,4879.7,0.57876732]
[1756055721815,1.1929,4879.8,4879.7,0.57876732]
[1756055722325,5.1929,4879.8,4879.7,0.57876732]
[1756055722525,0.41001,4879.1,4877.8,0.41011]
[1756055722716,0.83889,4879.4,4878.0,0.41009]
[1756055722922,0.83889,4879.4,4877.8,0.41011]
[1756055722923,0.4289,4879.4,4877.8,0.41011]
[1756055723123,0.4289,4879.4,4877.7,0.3257]
[1756055723124,0.41005,4878.6,4877.7,0.3257]
[1756055723424,0.7743,4878.7,4877.7,0.3257]
[1756055723817,0.7743,4878.7,4877.0,0.41019]
[1756055723818,0.4289,4878.5,4877.0,0.41019]
[1756055724017,0.4289,4878.5,4877.1,0.19236965]
[1756055724224,0.4289,4878.5,4877.4,0.3257]
[1756055724430,0.4101,4878.3,4877.4,0.3257]
[1756055724625,0.41008,4878.4,4877.4,0.3257]
[1756055725031,0.4101,4878.3,4877.4,0.3257]
[1756055725423,1.1929,4878.1,4876.7,0.3257]
[1756055725623,0.8475,4877.4,4876.8,0.1923751]
[1756055725824,0.8475,4877.4,4875.6,1.42981001]
[1756055725825,0.4102,4877.0,4876.0,0.3257]
[1756055726021,0.4102,4877.0,4875.5,1.42981001]
[1756055726022,0.8475,4876.7,4876.1,0.19239795]
[1756055726324,0.4186,4876.6,4875.4,0.3257]
[1756055726518,0.4186,4876.5,4875.5,0.19244082]
[1756055726722,0.4186,4876.5,4875.4,0.3257]
[1756055726933,0.3454,4875.6,4874.6,0.3257]
[1756055727130,0.4289,4875.2,4874.7,0.19245187]
[1756055727326,0.41035,4875.3,4874.8,0.19245187]
[1756055727525,1.1929,4875.0,4874.9,0.19245187]
[1756055727726,0.41038,4874.9,4873.9,0.3257]
[1756055728029,55.537,4876.3,4872.5,1.42981001]
[1756055728030,0.7743,4874.0,4872.5,1.42981001]
[1756055728235,0.0205,4873.4,4871.7,0.3257]
[1756055728533,1.1929,4872.5,4871.7,0.3257]
[1756055728729,0.7743,4872.5,4870.9,1.42981001]
[1756055728929,0.7743,4872.5,4870.6,0.7407]
[1756055728930,0.41064,4871.8,4870.6,0.7407]
[1756055729128,0.7845,4872.2,4869.9,0.3257]
[1756055729129,0.0205,4871.4,4869.9,0.3257]
[1756055729332,0.4186,4870.9,4869.1,0.4638]
[1756055729629,0.4289,4870.7,4869.1,0.4638]
[1756055729929,0.41075,4870.5,4869.1,0.4638]
[1756055730129,0.41075,4870.5,4867.9,0.0205]
[1756055730130,0.4289,4870.3,4868.6,0.41091]
[1756055730331,0.4289,4871.0,4868.9,0.0205]
[1756055730534,0.4186,4871.1,4869.9,0.7407]
[1756055730729,0.7743,4871.0,4869.9,0.7407]
[1756055731028,0.4186,4871.1,4869.1,1.42981001]
[1756055731029,0.41069,4871.2,4869.3,0.41085]
[1756055731230,0.41075,4870.6,4869.0,0.41087]
[1756055731424,0.41075,4870.6,4868.9,0.41088]
[1756055731627,0.41076,4870.4,4868.6,0.41091]
[1756055731823,0.764,4870.0,4868.6,0.41091]
[1756055732023,0.764,4870.0,4869.2,0.41085]
[1756055732226,0.4186,4870.0,4868.6,0.1784]
[1756055732432,0.4186,4870.6,4869.0,0.73657]
[1756055732736,0.4186,4870.4,4869.0,0.73657]
[1756055732924,0.8475,4870.3,4869.0,0.73657]
[1756055733131,0.8475,4870.3,4869.0,0.3257]
[1756055733432,0.3454,4870.0,4868.7,0.41088]
[1756055733631,0.4186,4869.9,4868.7,0.41088]
[1756055733827,0.4186,4869.9,4868.2,0.3257]
[1756055734137,0.4289,4868.9,4867.4,0.3257]
[1756055734437,0.764,4869.5,4869.1,0.41084]
[1756055734737,0.4186,4869.4,4869.1,0.73654]
[1756055735129,0.41077,4870.0,4868.6,0.5934]
[1756055735333,0.4186,4869.8,4868.6,0.415]
[1756055735531,0.7743,4870.0,4869.1,0.41084]
[1756055735729,0.41058,4872.3,4869.9,0.1784]
[1756055735936,0.4186,4871.9,4871.3,0.41066]
[1756055736143,0.4186,4871.9,4870.6,0.7407]
[1756055736638,0.3454,4871.8,4870.4,0.58913]
[1756055736934,1.2069,4872.5,4871.0,0.41068]
[1756055737137,0.4194,4872.1,4870.5,0.3263]
[1756055737340,0.4194,4871.9,4871.0,0.41068]
[1756055737631,0.4194,4871.9,4869.4,1.02706]
[1756055737632,0.4444,4872.0,4870.7,1.35308]
[1756055737830,0.4194,4872.9,4871.6,0.3263]
[1756055738032,0.7875,4872.4,4872.1,0.41059]
[1756055738430,0.4194,4872.8,4871.9,0.1756]
[1756055738638,30.3405,4873.1,4872.0,0.7414]
[1756055738839,30.3405,4873.1,4872.5,0.41055]
[1756055739036,0.4444,4873.8,4873.5,0.41047]
[1756055739230,0.4444,4874.5,4872.6,2.61711602]
[1756055739436,0.4444,4874.5,4874.1,0.41042]
[1756055739634,29.9814,4874.9,4873.7,0.41046]
[1756055739635,1.2069,4874.7,4873.7,0.41046]
[1756055739934,1.2069,4874.6,4873.7,0.41045]
[1756055740135,29.562,4874.9,4874.1,0.41042]
[1756055740548,1.2069,4874.8,4874.1,0.41042]
[1756055740729,1.2069,4874.8,4872.4,1.02642]
[1756055740730,0.0205,4874.7,4872.4,0.1756]
[1756055741042,4.0,4874.8,4872.4,0.1756]
[1756055741043,0.41039,4874.6,4872.4,0.1756]
[1756055741228,0.41039,4874.6,4872.1,0.4151]
[1756055741229,1.2069,4874.8,4872.9,0.1756]
[1756055741434,1.2069,4874.8,4873.1,0.4151]
[1756055741630,1.2069,4874.8,4873.7,0.4151]
[1756055741936,0.4444,4875.4,4874.6,0.3263]
[1756055742137,0.4444,4875.4,4875.1,0.41034]
[1756055742338,0.4194,4875.9,4875.7,0.41029]
[1756055742537,0.4444,4876.1,4876.0,0.41027]
[1756055742736,0.4444,4876.5,4875.7,0.3263]
[1756055743040,1.2069,4876.2,4874.9,0.3263]
[1756055743232,0.8638,4876.1,4874.9,0.3263]
[1756055743435,0.8638,4876.1,4874.9,0.73665]
[1756055743742,0.82974,4875.2,4873.9,0.4151]
[1756055744038,0.4444,4875.3,4873.5,0.3263]
[1756055744039,0.41039,4874.5,4873.5,0.3263]
[1756055744239,0.4444,4874.6,4873.5,0.3263]
[1756055744438,0.4444,4874.6,4873.8,0.41045]
[1756055744439,0.3431,4874.5,4873.8,0.41045]
[1756055744639,0.3431,4874.5,4873.5,0.73677]
[1756055744837,0.4444,4874.6,4873.1,0.5907]
[1756055745141,0.3431,4874.5,4873.4,0.41048]
[1756055745336,0.3431,4874.5,4873.1,0.5907]
[1756055745734,0.3431,4874.5,4873.7,0.41045]
[1756055745932,0.3431,4874.5,4873.2,0.3263]
[1756055746537,0.3431,4874.5,4873.4,0.4151]
[1756055746732,0.4444,4874.6,4874.4,0.4104]
[1756055746941,0.3431,4875.2,4874.5,0.7414]
[1756055747239,0.3431,4875.2,4874.6,0.41038]
[1756055747541,0.3431,4875.2,4874.0,0.1756]
[1756055747542,0.3431,4875.2,4874.4,0.41039]
[1756055747742,0.3431,4875.2,4874.6,0.41038]
[1756055747941,0.3431,4875.2,4874.4,0.4104]
[1756055748341,0.3431,4875.2,4874.8,0.41037]
[1756055748537,1.2069,4875.1,4874.5,0.41038]
[1756055749247,1.61725,4875.1,4874.1,0.4151]
[1756055749435,1.2069,4875.1,4874.1,0.4151]
[1756055749641,1.2069,4874.7,4873.3,0.5907]
[1756055749944,1.2069,4874.7,4873.3,1.00119]
[1756055750136,0.4444,4874.6,4873.3,0.5907]
[1756055750342,0.4194,4874.5,4873.3,0.5907]
[1756055750537,0.3431,4874.1,4873.3,0.4151]
[1756055750743,0.41044,4874.0,4873.3,0.4151]
[1756055750940,0.41046,4873.7,4873.2,0.3263]
[1756055751138,0.4444,4873.5,4872.6,0.5907]
[1756055751344,0.7625,4873.4,4872.1,0.3263]
[1756055751643,0.4194,4872.5,4871.4,0.3263]
[1756055751842,0.7625,4872.5,4871.4,0.3263]
[1756055752046,0.41061,4871.9,4871.4,0.3263]
[1756055752241,0.85501,4871.9,4871.1,0.4151]
[1756055752436,0.41065,4871.5,4871.1,0.4151]
[1756055752641,0.8638,4871.4,4870.8,0.3263]
[1756055752842,0.8638,4871.4,4870.4,0.4151]
[1756055753042,1.2069,4870.9,4869.8,0.06013452]
[1756055753239,0.7625,4870.9,4869.8,0.06013452]
[1756055753443,1.2069,4869.9,4869.8,0.06013452]
[1756055753840,1.2069,4869.9,4869.2,0.70843921]
[1756055754043,1.2069,4869.2,4869.0,0.70843921]
[1756055754246,0.4444,4869.1,4869.0,0.70843921]
[1756055754442,1.2069,4869.1,4869.0,0.70843921]
[1756055754649,1.02675,4870.9,4868.5,1.06812068]
[1756055754650,0.41083,4869.3,4868.9,0.70843921]
[1756055755141,0.4444,4868.9,4868.6,1.06812068]
[1756055755344,0.4444,4868.8,4868.6,1.06812068]
[1756055755544,0.4444,4868.7,4868.6,0.71568554]
[1756055755847,0.4444,4868.7,4868.5,0.71568554]
[1756055756043,0.4444,4868.6,4868.5,0.71568554]
[1756055756450,0.7625,4868.6,4868.4,0.71568554]
[1756055756746,0.4444,4868.5,4868.4,0.71568554]
[1756055756951,0.4194,4868.4,4868.3,0.71599893]
[1756055757147,0.7625,4868.3,4867.9,0.71599893]
[1756055757346,0.7625,4868.1,4867.8,0.71599893]
[1756055757546,0.7625,4868.0,4867.8,0.71599893]
[1756055757851,0.7875,4867.8,4867.7,0.71599893]
[1756055758045,1.61787,4867.7,4867.3,0.71599893]
[1756055758245,0.41097,4867.7,4867.2,0.71599893]
[1756055758446,0.4444,4867.4,4867.2,0.71599893]
[1756055758643,0.4444,4868.5,4867.3,4.0205]
[1756055758839,1.19834,4869.2,4868.2,0.7156562]
[1756055759039,1.02691,4870.1,4868.1,0.3263]
[1756055759040,0.7875,4868.4,4868.1,0.7156562]
[1756055759250,1.02701,4869.7,4867.9,0.7156562]
[1756055759251,1.2069,4868.0,4867.9,0.7156562]
[1756055759440,1.2069,4868.9,4867.5,0.917]
[1756055759642,0.41087,4868.8,4867.7,0.41096]
[1756055759945,0.41091,4868.4,4867.8,0.7156562]
[1756055760151,0.4194,4868.7,4867.5,0.7156562]
[1756055760352,0.4444,4868.6,4867.7,0.41096]
[1756055760647,0.41098,4867.5,4867.3,0.7156562]
[1756055760948,0.41102,4867.1,4866.6,0.7414]
[1756055761252,1.1736,4866.1,4865.4,0.4151]
[1756055761455,0.4444,4866.0,4865.1,1.0419562]
[1756055761641,0.41112,4865.9,4864.9,0.7156562]
[1756055761952,0.41112,4865.9,4865.0,0.7156562]
[1756055762148,0.41114,4865.7,4864.8,0.7156562]
[1756055762354,0.41112,4865.9,4864.8,0.7156562]
[1756055762540,0.41112,4865.9,4864.9,0.4112]
[1756055762740,0.4444,4866.0,4864.7,1.5419762]
[1756055762945,0.4444,4865.1,4864.5,1.0419562]
[1756055763249,0.4444,4865.1,4864.5,0.3263]
[1756055763442,0.41119,4865.0,4863.9,0.05902904]
[1756055763651,0.4444,4864.2,4863.8,0.4151]
[1756055763845,1.2069,4864.2,4863.2,0.3263]
[1756055764043,1.61816,4864.2,4863.2,0.3263]
[1756055764245,0.41134,4863.3,4862.5,0.3263]
[1756055764547,0.8638,4863.2,4862.3,0.41141]
[1756055764741,0.8638,4863.2,4862.0,0.1756]
[1756055764953,0.8638,4863.2,4862.0,0.58704]
[1756055765144,0.8638,4863.2,4862.0,0.1756]
[1756055765346,0.4444,4863.1,4861.9,0.3263]
[1756055765546,0.4444,4863.1,4861.4,0.5871]
[1756055765547,0.4444,4862.4,4861.4,0.1756]
[1756055765745,0.4444,4862.4,4861.3,0.4115]
[1756055765746,0.4444,4862.4,4861.1,0.7414]
[1756055766141,0.4444,4862.4,4861.1,1.15292]
[1756055766345,0.4444,4862.4,4861.1,0.7414]
[1756055766746,0.75452,4862.3,4861.1,0.7414]
[1756055766946,0.86818,4861.6,4860.6,0.06078369]
[1756055767247,0.4115,4861.4,4860.5,0.3258]
[1756055767442,0.0205,4862.1,4859.9,0.05869037]
[1756055767646,29.588,4862.3,4859.9,0.41162]
[1756055767647,0.41152,4861.2,4859.9,0.41162]
[1756055767846,0.866,4861.1,4859.9,0.41162]
[1756055768053,0.4093,4860.6,4859.7,0.3258]
[1756055768247,1.16437,4860.6,4859.5,0.425]
[1756055768447,0.4567,4860.5,4859.1,0.41169]
[1756055768651,20.57214,4862.2,4859.0,0.4858]
[1756055768652,0.3435,4860.2,4859.0,0.4858]
[1756055768847,0.866,4860.3,4858.1,0.0205]
[1756055768848,0.3435,4861.0,4859.8,0.425]
[1756055769046,0.3435,4861.0,4859.9,0.41162]
[1756055769257,0.4093,4861.3,4859.9,0.4858]
[1756055769457,0.4567,4861.5,4861.3,0.4115]
[1756055769648,29.588,4862.3,4861.8,0.41146]
[1756055769649,0.4567,4862.2,4861.8,0.41146]
[1756055769845,0.3435,4862.3,4861.9,0.3258]
[1756055770250,0.41146,4861.9,4860.7,0.41156]
[1756055770452,0.866,4862.5,4861.8,0.41146]
[1756055770752,0.866,4862.5,4861.1,0.3258]
[1756055770753,0.866,4862.5,4861.2,0.83651]
[1756055770949,0.41148,4861.6,4860.5,0.41157]
[1756055771154,0.8002,4861.7,4860.3,0.7508]
[1756055771657,0.4115,4861.4,4860.3,1.16238]
[1756055771847,0.8002,4861.7,4860.3,0.7508]
[1756055772052,0.8002,4861.7,4859.7,1.0496]
[1756055772053,0.4567,4862.4,4861.0,0.425]
[1756055772453,0.41154,4860.9,4860.2,0.9108]
[1756055772656,0.41154,4860.9,4860.2,0.7508]
[1756055773055,0.41154,4860.9,4859.8,0.41163]
[1756055773257,0.4093,4861.3,4859.9,0.3258]
[1756055773759,0.41158,4860.5,4859.9,0.3258]
[1756055773955,0.41155,4860.8,4859.9,0.3258]
[1756055774356,0.41156,4860.7,4859.9,0.3258]
[1756055774550,0.41156,4860.7,4859.2,0.3258]
[1756055774551,0.8002,4860.6,4859.2,0.3258]
[1756055774958,0.866,4860.4,4859.2,0.3258]
[1756055775154,0.4093,4860.0,4858.5,1.16254]
[1756055775355,0.41165,4859.7,4858.7,0.41172]
[1756055775762,0.41166,4859.6,4858.7,0.41172]
[1756055775965,0.8002,4859.9,4858.6,0.41173]
[1756055776168,0.41167,4859.4,4858.5,0.7508]
[1756055776358,0.4567,4858.9,4858.5,0.7508]
[1756055776558,0.4567,4858.8,4858.5,0.3258]
[1756055777264,0.4567,4858.6,4858.5,0.3258]
[1756055778062,0.3435,4859.4,4858.5,4.0]
[1756055778365,0.4567,4860.5,4860.0,0.41161]
[1756055778562,0.3435,4860.8,4859.5,1.02915]
[1756055778763,0.3435,4860.8,4858.9,0.0205]
[1756055778764,0.4093,4860.9,4858.8,0.9108]
[1756055779064,1.16435,4860.9,4859.9,0.41162]
[1756055779364,0.41158,4860.4,4859.6,0.3258]
[1756055779665,0.866,4860.7,4860.5,0.41157]
[1756055779965,30.03749,4861.6,4860.5,0.57157]
[1756055780176,0.4093,4861.7,4861.0,0.3258]
[1756055780471,0.3435,4861.9,4861.0,0.3258]
[1756055780769,0.3435,4861.9,4861.5,0.41148]
[1756055781070,0.4567,4862.0,4861.6,0.3258]
[1756055781271,0.4093,4862.4,4861.7,0.3258]
[1756055781463,0.4567,4862.6,4862.1,0.41143]
[1756055781670,0.4567,4862.6,4862.1,0.83643]
[1756055781867,0.4567,4862.5,4862.1,1.16223]
[1756055782074,0.4567,4862.5,4862.3,0.41142]
[1756055782567,0.4567,4862.9,4862.1,0.425]
[1756055783168,0.4567,4862.9,4862.1,0.585]
[1756055783365,0.3435,4862.1,4861.4,0.5338181]
[1756055783567,0.4567,4862.2,4862.1,0.3258]
[1756055783770,0.7528,4862.6,4861.4,0.3258]
[1756055784067,0.4567,4861.5,4860.8,0.8596181]
[1756055784368,1.02853,4862.5,4861.6,0.41147]
[1756055784369,0.4567,4862.5,4861.6,0.41147]
[1756055784572,0.4567,4863.1,4862.3,0.3258]
[1756055784872,0.4567,4863.1,4862.7,0.9108]
[1756055785071,0.4567,4863.8,4862.9,0.41136]
[1756055785571,0.4567,4863.8,4862.5,0.8756562]
[1756055785572,0.4567,4862.9,4862.5,0.16]
[1756055785775,1.02829,4863.6,4862.3,0.5338181]
[1756055785974,1.02829,4863.6,4862.3,0.8596181]
[1756055785975,0.3435,4862.7,4862.3,0.8596181]
[1756055786172,0.41137,4863.0,4862.6,0.5338181]
[1756055786362,0.41135,4863.2,4862.6,0.5338181]
[1756055786562,1.02821,4864.0,4862.6,0.5338181]
[1756055786872,0.41141,4862.4,4862.3,0.5338181]
[1756055787069,1.62091,4862.4,4862.3,0.7156562]
[1756055787268,0.41146,4861.8,4861.7,0.53938444]
[1756055787571,0.866,4861.7,4861.6,0.53938444]
[1756055787768,1.2095,4861.7,4861.6,0.53938444]
[1756055787964,0.41146,4861.8,4861.5,0.53938444]
[1756055788170,1.62099,4861.6,4861.2,1.07348431]
[1756055788365,0.4093,4861.6,4861.2,1.07348431]
[1756055788575,0.39679994,4861.6,4861.2,1.07348431]
[1756055788772,0.4567,4862.4,4861.5,0.41149]
[1756055788973,0.41145,4862.1,4861.9,0.54028135]
[1756055789174,0.41145,4862.0,4861.9,1.07348431]
[1756055789372,0.9354556,4862.0,4861.9,1.07348431]
[1756055789771,1.3921556,4862.0,4861.9,1.07348431]
[1756055789980,1.21165,4862.0,4861.9,1.07348431]
[1756055790468,0.41145,4862.0,4861.8,1.07348431]
[1756055790670,1.21166,4861.8,4861.7,1.07348431]
[1756055790872,0.41149,4861.5,4861.4,1.07348431]
[1756055791071,1.62099,4861.5,4861.4,1.07348431]
[1756055791378,1.27753,4861.1,4861.0,1.42981001]
[1756055791974,0.41151,4861.2,4861.0,2.18171001]
[1756055792170,0.41151,4861.2,4860.8,0.4261]
[1756055792377,0.866,4862.2,4861.0,1.1769]
[1756055792575,0.41151,4861.3,4861.2,1.44834296]
[1756055792775,1.62101,4861.3,4861.2,1.44834296]
[1756055793285,0.41152,4861.2,4860.8,1.80336689]
[1756055793578,0.82083,4861.1,4860.8,1.80336689]
[1756055793775,0.41154,4861.0,4860.8,1.80336689]
[1756055794186,0.41154,4861.0,4860.5,1.44996104]
[1756055794187,0.41155,4860.8,4860.5,1.44996104]
[1756055794474,0.41157,4860.6,4860.5,1.44996104]
[1756055794784,0.41161,4860.2,4860.0,1.08875007]
[1756055795079,1.27761,4860.2,4860.0,1.08875007]
[1756055795279,0.41161,4860.2,4860.0,0.3258]
[1756055795481,0.41161,4860.2,4860.0,0.7519]
[1756055795779,0.4116,4860.2,4860.0,0.7519]
[1756055796186,0.7528,4860.7,4860.1,0.41161]
[1756055796485,1.62106,4860.6,4860.5,0.54438812]
[1756055796882,0.4116,4860.2,4860.1,1.08875007]
[1756055797071,0.4116,4860.2,4860.0,1.08875007]
[1756055797072,1.1879,4860.1,4860.0,1.08875007]
[1756055797272,1.59952,4860.0,4859.9,1.08875007]
[1756055797476,1.59952,4860.0,4859.8,1.08875007]
[1756055797679,1.1879,4859.9,4859.8,1.08875007]
[1756055798078,0.41163,4859.8,4859.7,1.08875007]
[1756055798284,1.59953,4859.8,4859.7,1.08875007]
[1756055798486,0.82546,4860.7,4860.3,0.41159]
[1756055798785,0.41156,4860.7,4860.5,0.7718]
[1756055798972,0.3324,4861.3,4860.5,0.7718]
[1756055799172,1.02888,4860.8,4860.0,1.08876692]
[1756055799373,2.62836,4860.7,4860.5,0.54448713]
[1756055799573,1.59952,4859.9,4859.7,1.08876692]
[1756055799773,0.4117,4859.1,4858.9,1.08876692]
[1756055800074,0.4117,4859.0,4858.7,1.08876692]
[1756055800280,0.41171,4858.9,4858.7,1.40886692]
[1756055800577,0.4117,4859.1,4858.9,0.3201]
[1756055800777,1.2672,4859.1,4858.9,0.3201]
[1756055801380,0.41168,4859.3,4859.0,0.3201]
[1756055801583,0.41169,4859.2,4859.0,0.3201]
[1756055801781,1.02943,4858.2,4857.0,1.80336689]
[1756055801981,1.02943,4858.2,4854.9,1.03011]
[1756055801982,0.41182,4857.6,4856.9,0.4394]
[1756055802183,0.41178,4858.1,4857.0,0.41187]
[1756055802378,0.1147,4859.0,4857.6,0.7718]
[1756055802679,0.1147,4859.0,4858.0,0.4394]
[1756055802883,0.41173,4858.7,4858.0,0.4394]
[1756055803189,0.1147,4860.4,4858.1,0.4517]
[1756055803386,0.41172,4858.8,4858.1,0.7718]
[1756055803579,0.41172,4858.8,4858.2,0.85117]
[1756055803776,0.1147,4859.5,4857.4,0.4394]
[1756055803980,0.1147,4860.2,4858.7,0.3406]
[1756055804277,0.4116,4860.3,4859.4,0.7595]
[1756055804478,0.4116,4860.3,4859.5,0.4517]
[1756055804682,0.4116,4860.3,4859.6,0.4394]
[1756055804983,0.41165,4859.6,4859.0,0.4394]
[1756055805183,0.1147,4860.9,4859.4,0.4394]
[1756055805378,0.1147,4860.9,4859.6,0.7595]
[1756055805578,0.41155,4860.8,4859.8,0.4394]
[1756055805775,0.41155,4860.8,4860.0,0.4394]
[1756055805976,0.1147,4861.5,4860.1,0.7718]
[1756055806185,0.41153,4861.1,4860.3,0.41158]
[1756055806384,0.41162,4860.1,4859.5,0.8911]
[1756055806679,0.1147,4861.0,4859.5,0.8911]
[1756055807082,0.41164,4859.8,4859.6,0.8911]
[1756055807285,0.52634,4859.8,4859.7,0.4394]
[1756055807876,0.41164,4859.8,4859.7,0.4394]
[1756055808279,0.41162,4860.0,4859.4,0.4394]
[1756055808478,23.8367,4861.4,4859.7,0.3201]
[1756055808678,23.8367,4861.4,4860.2,0.4116]
[1756055808881,23.8367,4861.4,4860.2,0.41159]
[1756055808882,0.41155,4860.8,4860.2,0.41159]
[1756055809083,0.41152,4861.2,4860.5,0.41157]
[1756055809280,0.41152,4861.2,4860.4,1.2112]
[1756055809281,0.4115,4861.4,4860.7,0.4394]
[1756055809585,0.41148,4861.7,4860.9,0.85093]
[1756055809785,0.4115,4861.5,4860.9,0.4394]
[1756055810482,0.1147,4862.1,4860.9,0.4394]
[1756055810783,0.41152,4861.2,4860.9,0.4394]
[1756055810991,0.41154,4860.9,4860.8,0.4394]
[1756055811189,0.41158,4860.5,4860.3,0.4394]
[1756055811382,0.41156,4860.7,4860.3,0.4517]
[1756055811584,0.41158,4860.5,4860.3,0.4517]